fUST/lending_fUST_20240901
["ID","MTS","AMOUNT","RATE_DAILY","PERIOD"]
[336811570,1725185456781,-500.0,0.0003041,31]
[336811571,1725185456790,-442.38826196,0.0003041,31]
[336811572,1725185456799,-500.0,0.0003041,31]
[336811573,1725185456808,-320.74701786,0.0003041,31]
[336811574,1725185456817,-635.43686533,0.0003041,31]
[336811575,1725185456827,-500.0,0.0003041,31]
[336811576,1725185456836,-530.1,0.0003041,31]
[336811577,1725185456845,-500.0,0.0003041,31]
[336811578,1725185456853,-2421.11,0.0003041,31]
[336811579,1725185456863,-500.0,0.0003041,31]
[336811580,1725185456873,-500.0,0.0003041,31]
[336811581,1725185456885,-500.0,0.0003041,31]
[336811582,1725185456894,-501.64022452,0.0003041,31]
[336811583,1725185456903,-500.0,0.0003041,31]
[336811584,1725185456913,-500.0,0.0003041,31]
[336811585,1725185456922,-500.0,0.0003041,20]
[336811586,1725185456931,-500.0,0.0003041,31]
[336811587,1725185456942,-592.19,0.0003041,31]
[336811588,1725185456951,-500.0,0.0003041,31]
[336811589,1725185456961,-500.0,0.0003041,31]
[336811590,1725185456970,-500.0,0.0003041,31]
[336811591,1725185456979,-500.0,0.0003041,31]
[336811592,1725185456990,-500.0,0.0003041,30]
[336811593,1725185457001,-500.0,0.0003041,31]
[336811594,1725185457012,-500.0,0.0003041,31]
[336811595,1725185457021,-500.0,0.0003041,31]
[336811596,1725185457031,-500.0,0.0003041,31]
[336811597,1725185457041,-500.0,0.0003041,31]
[336811598,1725185457052,-604.91,0.0003041,31]
[336811599,1725185457062,-500.0,0.0003041,31]
[336811600,1725185457073,-868.75,0.0003041,31]
[336811601,1725185457083,-500.0,0.0003041,31]
[336811602,1725185457094,-500.0,0.0003041,31]
[336811603,1725185457111,-658.09,0.0003041,31]
[336811604,1725185457123,-500.0,0.0003041,31]
[336811605,1725185457135,-500.0,0.0003041,31]
[336811606,1725185457147,-500.0,0.0003041,31]
[336811607,1725185457158,-500.0,0.0003041,31]
[336811608,1725185457168,-500.0,0.0003041,31]
[336811609,1725185457182,-500.0,0.0003041,31]
[336811610,1725185457191,-500.0,0.0003041,31]
[336811611,1725185457201,-501.23559952,0.0003041,31]
[336811612,1725185457210,-500.0,0.0003041,31]
[336811613,1725185457220,-500.0,0.0003041,31]
[336811614,1725185457229,-500.0,0.0003041,31]
[336811615,1725185457240,-500.0,0.0003041,31]
[336811616,1725185457251,-500.0,0.0003041,31]
[336811617,1725185457264,-903.01,0.0003041,31]
[336811618,1725185457275,-500.0,0.0003041,31]
[336811619,1725185457287,-500.0,0.0003041,31]
[336811620,1725185457298,-500.0,0.0003041,31]
[336811621,1725185457310,-500.0,0.0003041,31]
[336811622,1725185457321,-500.0,0.0003041,31]
[336811623,1725185457332,-501.94409176,0.0003041,31]
[336811624,1725185457342,-500.0,0.0003041,31]
[336811625,1725185457353,-500.0,0.0003041,31]
[336811626,1725185457362,-500.0,0.0003041,31]
[336811627,1725185457373,-500.0,0.0003041,31]
[336811628,1725185457384,-500.0,0.0003041,31]
[336811629,1725185457394,-500.0,0.0003041,31]
[336811630,1725185457403,-495.6903607,0.0003041,31]
[336811631,1725185457412,-500.0,0.0003041,31]
[336811632,1725185457422,-500.0,0.0003041,31]
[336811633,1725185457431,-500.0,0.0003041,31]
[336811634,1725185457442,-500.0,0.0003041,31]
[336811635,1725185457451,-500.0,0.0003041,31]
[336811636,1725185457460,-1088.23,0.0003041,31]
[336811637,1725185457470,-500.0,0.0003041,31]
[336811638,1725185457479,-500.0,0.0003041,31]
[336811639,1725185457489,-500.0,0.0003041,31]
[336811640,1725185457498,-500.0,0.0003041,31]
[336811641,1725185457508,-909.9,0.0003041,31]
[336811642,1725185457517,-500.0,0.0003041,31]
[336811643,1725185457527,-500.0,0.0003041,31]
[336811644,1725185457536,-151.0,0.0003041,7]
[336811645,1725185457549,-151.0,0.0003041,7]
[336811646,1725185457559,-500.0,0.0003041,31]
[336811647,1725185457568,-500.0,0.0003041,31]
[336811648,1725185457578,-500.0,0.0003041,31]
[336811649,1725185457588,-500.0,0.0003041,31]
[336811650,1725185457599,-500.0,0.0003041,31]
[336811651,1725185457608,-500.0,0.0003041,31]
[336811652,1725185457618,-500.0,0.0003041,31]
[336811653,1725185457628,-500.0,0.0003041,7]
[336811654,1725185457638,-580.39382741,0.0003041,31]
[336811655,1725185457648,-704.31,0.0003041,31]
[336811656,1725185457658,-612.6,0.0003041,31]
[336811657,1725185457668,-500.0,0.0003041,31]
[336811658,1725185457678,-891.54,0.0003041,31]
[336811659,1725185457690,-500.0,0.0003041,31]
[336811660,1725185457700,-500.0,0.0003041,31]
[336811661,1725185457710,-500.0,0.0003041,31]
[336811662,1725185457720,-500.0,0.0003041,31]
[336811663,1725185457731,-500.0,0.0003041,31]
[336811664,1725185457740,-500.0,0.0003041,31]
[336811665,1725185457750,-527.94596193,0.0003041,31]
[336811666,1725185457760,-500.0,0.0003041,31]
[336811667,1725185457770,-500.0,0.0003041,31]
[336811668,1725185457781,-500.0,0.0003041,31]
[336811669,1725185457791,-502.06823551,0.0003041,31]
[336811670,1725185457800,-500.0,0.0003041,31]
[336811671,1725185457810,-500.0,0.0003041,31]
[336811672,1725185457821,-500.0,0.0003041,31]
[336811673,1725185457831,-366.56628054,0.0003041,31]
[336811674,1725185457842,-500.0,0.0003041,31]
[336811675,1725185457853,-992.94,0.0003041,31]
[336811676,1725185457863,-203.967892,0.0003041,7]
[336811677,1725185457872,-500.65209689,0.0003041,31]
[336811678,1725185457882,-500.0,0.0003041,31]
[336811679,1725185457893,-500.0,0.0003041,31]
[336811680,1725185457903,-162.50728671,0.0003041,31]
[336811681,1725185457914,-500.0,0.0003041,31]
[336811682,1725185457925,-500.0,0.0003041,31]
[336811683,1725185457936,-500.0,0.0003041,31]
[336811684,1725185457947,-318.45377588,0.0003041,31]
[336811685,1725185457957,-500.0,0.0003041,31]
[336811686,1725185457967,-500.0,0.0003041,31]
[336811687,1725185457977,-1085.34,0.0003041,31]
[336811688,1725185457986,-1068.29,0.0003041,31]
[336811689,1725185457996,-500.0,0.0003041,31]
[336811690,1725185458006,-500.0,0.0003041,31]
[336811691,1725185458016,-524.17276754,0.0003041,31]
[336811692,1725185458026,-836.51,0.0003041,31]
[336811693,1725185458035,-500.0,0.0003041,31]
[336811694,1725185458044,-500.0,0.0003041,31]
[336811695,1725185458054,-500.0,0.0003041,31]
[336811696,1725185458063,-500.0,0.0003041,31]
[336811697,1725185458072,-500.0,0.0003041,31]
[336811698,1725185458082,-500.0,0.0003041,31]
[336811699,1725185458093,-537.76895376,0.0003041,31]
[336811700,1725185458103,-500.0,0.0003041,31]
[336811701,1725185458112,-500.0,0.0003041,31]
[336811702,1725185458122,-502.12,0.0003041,31]
[336811703,1725185458133,-1023.49,0.0003041,31]
[336811704,1725185458145,-500.0,0.0003041,31]
[336811705,1725185458155,-500.0,0.0003041,31]
[336811706,1725185458165,-500.0,0.0003041,31]
[336811707,1725185458175,-500.87094952,0.0003041,31]
[336811708,1725185458184,-500.0,0.0003041,31]
[336811709,1725185458194,-500.0,0.0003041,31]
[336811710,1725185458204,-500.0,0.0003041,31]
[336811711,1725185458213,-622.67,0.0003041,31]
[336811712,1725185458223,-500.0,0.0003041,31]
[336811713,1725185458232,-500.0,0.0003041,31]
[336811714,1725185458242,-575.6,0.0003041,31]
[336811715,1725185458252,-502.43955749,0.0003041,31]
[336811716,1725185458262,-500.0,0.0003041,31]
[336811717,1725185458271,-591.49228991,0.0003041,31]
[336811718,1725185458282,-539.6581412,0.0003041,31]
[336811719,1725185458291,-500.0,0.0003041,31]
[336811720,1725185458302,-662.62,0.0003041,31]
[336811721,1725185458311,-500.0,0.0003041,31]
[336811722,1725185458322,-500.0,0.0003041,31]
[336811723,1725185458333,-500.0,0.0003041,31]
[336811724,1725185458343,-500.0,0.0003041,31]
[336811725,1725185458354,-500.0,0.0003041,31]
[336811726,1725185458364,-500.0,0.0003041,31]
[336811727,1725185458374,-500.0,0.0003041,31]
[336811728,1725185458383,-500.0,0.0003041,31]
[336811729,1725185458392,-614.05,0.0003041,31]
[336811730,1725185458401,-506.51235212,0.0003041,31]
[336811731,1725185458411,-500.0,0.0003041,30]
[336811732,1725185458420,-500.0,0.0003041,31]
[336811733,1725185458429,-500.0,0.0003041,31]
[336811734,1725185458440,-500.0,0.0003041,31]
[336811735,1725185458460,-500.0,0.0003041,31]
[336811736,1725185458472,-784.74,0.0003041,31]
[336811737,1725185458482,-500.0,0.0003041,31]
[336811738,1725185458493,-500.0,0.0003041,31]
[336811739,1725185458504,-500.0,0.0003041,31]
[336811740,1725185458515,-348.71289404,0.0003041,31]
[336811741,1725185458525,-500.0,0.0003041,31]
[336811742,1725185458535,-500.0,0.0003041,31]
[336811743,1725185458546,-503.37685167,0.0003041,31]
[336811744,1725185458556,-500.0,0.0003041,31]
[336811745,1725185458566,-506.87810962,0.0003041,31]
[336811746,1725185458576,-500.0,0.0003041,31]
[336811747,1725185458586,-500.0,0.0003041,31]
[336811748,1725185458597,-500.0,0.0003041,31]
[336811749,1725185458607,-524.37575311,0.0003041,31]
[336811750,1725185458618,-1081.01,0.0003041,31]
[336811751,1725185458628,-689.81,0.0003041,31]
[336811752,1725185458638,-500.0,0.0003041,31]
[336811753,1725185458648,-500.0,0.0003041,31]
[336811754,1725185458658,-500.0,0.0003041,31]
[336811755,1725185458668,-200.0,0.0003041,7]
[336811756,1725185458679,-500.0,0.0003041,31]
[336811757,1725185458693,-1036.09,0.0003041,14]
[336811758,1725185458703,-500.0,0.0003041,31]
[336811759,1725185458713,-769.44,0.0003041,31]
[336811760,1725185458722,-500.0,0.0003041,31]
[336811761,1725185458733,-500.0,0.0003041,31]
[336811762,1725185458743,-151.0,0.0003041,7]
[336811763,1725185458752,-151.0,0.0003041,7]
[336811764,1725185458765,-500.0,0.0003041,31]
[336811765,1725185458777,-151.0,0.0003041,7]
[336811766,1725185458787,-151.0,0.0003041,7]
[336811767,1725185458797,-503.85607641,0.0003041,31]
[336811768,1725185458807,-705.22,0.0003041,31]
[336811769,1725185458817,-500.0,0.0003041,31]
[336811770,1725185458827,-500.0,0.0003041,31]
[336811771,1725185458837,-507.1311536,0.0003041,31]
[336811772,1725185458848,-500.0,0.0003041,31]
[336811773,1725185458859,-500.0,0.0003041,31]
[336811774,1725185458869,-500.0,0.0003041,31]
[336811775,1725185458880,-500.0,0.0003041,31]
[336811776,1725185458889,-500.0,0.0003041,31]
[336811777,1725185458900,-857.54,0.0003041,7]
[336811778,1725185458910,-500.0,0.0003041,31]
[336811779,1725185458920,-500.0,0.0003041,31]
[336811780,1725185458931,-1599.32,0.0003041,31]
[336811781,1725185458941,-1471.41,0.0003041,31]
[336811782,1725185458950,-500.0,0.0003041,31]
[336811783,1725185458960,-158.451971,0.0003041,7]
[336811784,1725185458970,-158.451971,0.0003041,7]
[336811785,1725185458981,-500.0,0.0003041,31]
[336811786,1725185458990,-158.451971,0.0003041,7]
[336811787,1725185459000,-158.451971,0.0003041,7]
[336811788,1725185459010,-500.0,0.0003041,31]
[336811789,1725185459020,-500.0,0.0003041,31]
[336811790,1725185459030,-500.0,0.0003041,31]
[336811791,1725185459040,-500.0,0.0003041,31]
[336811792,1725185459053,-500.0,0.0003041,31]
[336811793,1725185459068,-500.0,0.0003041,31]
[336811794,1725185459079,-164.244842,0.0003041,7]
[336811795,1725185459089,-164.244842,0.0003041,7]
[336811796,1725185459099,-164.244842,0.0003041,7]
[336811797,1725185459110,-164.244842,0.0003041,7]
[336811798,1725185459121,-500.0,0.0003041,31]
[336811799,1725185459133,-500.0,0.0003041,31]
[336811800,1725185459143,-500.0,0.0003041,31]
[336811801,1725185459154,-1846.39,0.0003041,31]
[336811802,1725185459164,-500.0,0.0003041,31]
[336811803,1725185459174,-500.0,0.0003041,31]
[336811804,1725185459184,-679.77,0.0003041,31]
[336811805,1725185459194,-151.0,0.0003041,7]
[336811806,1725185459393,-251.514372,0.0003041,7]
[336811807,1725185459409,-501.64605786,0.0003041,31]
[336811808,1725185459419,-500.0,0.0003041,31]
[336811809,1725185459429,-500.0,0.0003041,31]
[336811810,1725185459439,-500.0,0.0003041,31]
[336811811,1725185459452,-908.49,0.0003041,31]
[336811812,1725185459462,-500.0,0.0003041,31]
[336811813,1725185459472,-1427.31,0.0003041,31]
[336811814,1725185459482,-24544.61,0.0003041,31]
[336811815,1725185459492,-151.0,0.0003041,7]
[336811816,1725185459502,-151.0,0.0003041,7]
[336811817,1725185459511,-986.14,0.0003041,31]
[336811818,1725185459521,-1186.23,0.0003041,31]
[336811819,1725185459531,-4241.54,0.0003041,31]
[336811820,1725185459540,-1917.72,0.0003041,31]
[336811821,1725185459550,-1467.86,0.0003041,31]
[336811822,1725185459560,-500.0,0.0003041,31]
[336811823,1725185459570,-1352.8,0.0003041,31]
[336811824,1725185459580,-500.0,0.0003041,31]
[336811825,1725185459590,-502.63,0.0003041,31]
[336811826,1725185459600,-500.0,0.0003041,31]
[336811827,1725185459610,-500.0,0.0003041,31]
[336811828,1725185459624,-500.0,0.0003041,31]
[336811829,1725185459635,-500.0,0.0003041,31]
[336811830,1725185459646,-500.0,0.0003041,31]
[336811831,1725185459656,-500.0,0.0003041,31]
[336811832,1725185459667,-500.0,0.0003041,31]
[336811833,1725185459676,-1019.58,0.0003041,31]
[336811834,1725185459689,-1197.31,0.0003041,31]
[336811835,1725185459699,-500.0,0.0003041,31]
[336811836,1725185459709,-646.98,0.0003041,31]
[336811837,1725185459719,-500.0,0.0003041,31]
[336811838,1725185459731,-673.77,0.0003041,31]
[336811839,1725185459742,-500.0,0.0003041,31]
[336811840,1725185459753,-4673.85,0.0003041,31]
[336811841,1725185459764,-500.0,0.0003041,31]
[336811842,1725185459774,-500.0,0.0003041,31]
[336811843,1725185459784,-1436.18,0.0003041,31]
[336811844,1725185459795,-500.0,0.0003041,31]
[336811845,1725185459805,-500.0,0.0003041,31]
[336811846,1725185459815,-500.0,0.0003041,31]
[336811847,1725185459824,-500.0,0.0003041,31]
[336811848,1725185459834,-1089.61,0.0003041,31]
[336811849,1725185459844,-500.0,0.0003041,31]
[336811850,1725185459863,-2396.44,0.0003041,31]
[336811851,1725185459873,-500.0,0.0003041,31]
[336811852,1725185459883,-500.0,0.0003041,31]
[336811853,1725185459892,-500.0,0.0003041,31]
[336811854,1725185459902,-500.0,0.0003041,31]
[336811855,1725185459912,-500.0,0.0003041,31]
[336811856,1725185459921,-508.61,0.0003041,31]
[336811857,1725185459931,-738.99,0.0003041,31]
[336811858,1725185459941,-500.0,0.0003041,31]
[336811859,1725185459952,-830.57,0.0003041,31]
[336811860,1725185459961,-2169.21,0.0003041,31]
[336811861,1725185459971,-500.0,0.0003041,31]
[336811862,1725185459981,-1530.24,0.0003041,31]
[336811863,1725185459991,-687.25,0.0003041,31]
[336811864,1725185460002,-507.33,0.0003041,31]
[336811865,1725185460011,-729.54,0.0003041,31]
[336811866,1725185460020,-207.89046365,0.0003041,31]
[336811867,1725185460030,-500.0,0.0003041,31]
[336811868,1725185460039,-500.0,0.0003041,31]
[336811869,1725185460049,-1366.76,0.0003041,31]
[336811870,1725185460059,-678.95,0.0003041,31]
[336811871,1725185460068,-500.0,0.0003041,31]
[336811872,1725185460078,-1577.8,0.0003041,31]
[336811873,1725185460087,-500.0,0.0003041,31]
[336811874,1725185460096,-500.0,0.0003041,31]
[336811875,1725185460106,-500.0,0.0003041,31]
[336811876,1725185460115,-500.0,0.0003041,31]
[336811877,1725185460125,-2567.67,0.0003041,31]
[336811878,1725185460136,-634.29,0.0003041,31]
[336811879,1725185460146,-151.0,0.0003041,7]
[336811880,1725185460156,-28231.81966199,0.0003041,8]
[336811881,1725185460192,-1084.1453264,0.0003041,8]
[336811882,1725185460204,-9982.63501161,0.0003041,8]
[336811883,1725185460214,-151.0,0.0003041,7]
[336811884,1725185460224,-500.0,0.0003041,31]
[336811885,1725185460234,-500.0,0.0003041,2]
[336811886,1725185460244,-570.9348106,0.0003041,31]
[336811887,1725185460813,-6538.7,0.00030136,31]
[336811888,1725185460823,-1480.7951894,0.0003041,31]
[336811889,1725185460832,-500.0,0.0003041,31]
[336811890,1725185460842,-446.30194305,0.0003041,31]
[336811891,1725185461100,-500.0,0.00030136,31]
[336811892,1725185461110,-53.69805695,0.0003041,31]
[336811893,1725185461121,-596.32,0.0003041,31]
[336811894,1725185461133,-252.64893611,0.0003041,31]
[336811895,1725185461143,-500.0,0.0003041,31]
[336811896,1725185461153,-500.0,0.0003041,31]
[336811897,1725185461164,-2939.22,0.0003041,31]
[336811898,1725185461174,-824.11,0.0003041,31]
[336811899,1725185461184,-6507.54,0.0003041,31]
[336811900,1725185461194,-500.0,0.0003041,31]
[336811901,1725185461203,-733.73,0.0003041,31]
[336811902,1725185461215,-1828.11,0.0003041,21]
[336811903,1725185461225,-960.76,0.0003041,31]
[336811904,1725185461236,-1101.17,0.0003041,31]
[336811905,1725185461248,-6855.78,0.0003041,31]
[336811906,1725185461257,-427.12708216,0.0003041,31]
[336811907,1725185461267,-500.0,0.0003041,31]
[336811908,1725185461277,-665.93,0.0003041,31]
[336811909,1725185461286,-700.08,0.0003041,31]
[336811910,1725185461296,-500.0,0.0003041,31]
[336811911,1725185461306,-1451.06,0.0003041,31]
[336811912,1725185461315,-712.23,0.0003041,31]
[336811913,1725185461325,-500.0,0.0003041,31]
[336811914,1725185461335,-1254.64,0.0003041,31]
[336811915,1725185461345,-500.0,0.0003041,31]
[336811916,1725185461358,-500.0,0.0003041,31]
[336811917,1725185461368,-1506.31,0.0003041,31]
[336811918,1725185461378,-151.0,0.0003041,7]
[336811919,1725185461388,-500.0,0.0003041,31]
[336811920,1725185461398,-500.0,0.0003041,31]
[336811921,1725185461408,-7923.35,0.0003041,31]
[336811922,1725185461418,-505.27017901,0.0003041,31]
[336811923,1725185461427,-1345.89,0.0003041,31]
[336811924,1725185461437,-3908.65,0.0003041,31]
[336811925,1725185461446,-500.0,0.0003041,31]
[336811926,1725185461456,-151.0,0.0003041,7]
[336811927,1725185461466,-500.0,0.0003041,31]
[336811928,1725185461475,-500.0,0.0003041,31]
[336811929,1725185461485,-500.0,0.0003041,31]
[336811930,1725185461494,-500.0,0.0003041,31]
[336811931,1725185461503,-500.0,0.0003041,31]
[336811932,1725185461513,-151.0,0.0003041,7]
[336811933,1725185461523,-500.0,0.0003041,31]
[336811934,1725185461533,-1089.11,0.0003041,31]
[336811935,1725185461544,-500.0,0.0003041,31]
[336811936,1725185461554,-1136.42273229,0.0003041,31]
[336811937,1725185462568,-852.85919551,0.00029877,2]
[336811938,1725185462579,-712.5167953,0.00029877,2]
[336811947,1725186301871,1408.75774379,0.0001,2]
[336811954,1725186431172,-258.0,0.00025,2]
[336811955,1725186431194,-275.127398,0.00028062,2]
[336811956,1725186431216,-1110.4669488,0.00028085,2]
[336811957,1725186431237,-3000.0,0.00028086,2]
[336811958,1725186431258,-181.210776,0.00028088,2]
[336811959,1725186431281,-164.27495,0.00028347,2]
[336811960,1725186431303,-164.27495,0.00028481,2]
[336811961,1725186431326,-164.27495,0.00028615,2]
[336811962,1725186431351,-164.27495,0.0002875,2]
[336811963,1725186431374,-1000.0,0.00028782,2]
[336811964,1725186431397,-300.0,0.00028824,2]
[336811965,1725186431420,-1000.0,0.00028832,2]
[336811966,1725186431442,-164.27495,0.00028884,2]
[336811967,1725186431464,-164.27495,0.00029018,2]
[336811968,1725186431485,-207.943127,0.00029041,2]
[336811969,1725186431508,-164.27495,0.00029152,2]
[336811970,1725186431528,-469.7491662,0.00029155,2]
[336811971,1725186431550,-164.27495,0.00029287,2]
[336811972,1725186431572,-1009.33484723,0.00029332,2]
[336811973,1725186431595,-164.27495,0.00029421,2]
[336811974,1725186431618,-164.27495,0.00029555,2]
[336811975,1725186431642,-164.27495,0.0002969,2]
[336811976,1725186431663,-152.16347706,0.000298,30]
[336811977,1725186431685,-164.27495,0.00029824,2]
[336811978,1725186431710,-153.0,0.00029863,2]
[336811979,1725186431732,-153.0,0.00029863,2]
[336811980,1725186431754,-207.943127,0.00029863,2]
[336811981,1725186431776,-207.943127,0.00029863,2]
[336811982,1725186431797,-207.943127,0.00029863,2]
[336811983,1725186431817,-153.0,0.0002989,2]
[336811984,1725186431840,-153.0,0.0002989,2]
[336811985,1725186431866,-1000.0,0.0003,3]
[336811986,1725186431888,-151.0,0.0003,120]
[336811987,1725186431910,-151.0,0.0003,120]
[336811988,1725186431932,-316.8898445,0.0003,2]
[336811989,1725186431953,-348.0,0.0003,2]
[336811990,1725186431974,-503.64031218,0.0003,2]
[336811991,1725186431995,-4464.76156285,0.0003002,2]
[336811992,1725186432015,-2000.0,0.00030036,2]
[336811993,1725186432036,-994.61912553,0.00030036,2]
[336811994,1725186432062,-45362.0774948,0.00030126,4]
[336811995,1725186432083,-1988.4,0.00030126,3]
[336811996,1725186432104,-1657.0,0.00030126,3]
[336811997,1725186432127,-1380.83,0.00030126,3]
[336811998,1725186432152,-5040.23083276,0.00030127,4]
[336811999,1725186432174,-209.68486386,0.00030135,2]
[336812000,1725186432194,-160.39873954,0.00030135,2]
[336812001,1725186432215,-314.74541331,0.00030135,2]
[336812002,1725186432237,-500.0,0.00030135,2]
[336812003,1725186432258,-500.0,0.00030135,2]
[336812004,1725186432280,-500.0,0.00030135,2]
[336812005,1725186432301,-155.75706239,0.00030135,2]
[336812006,1725186432323,-500.0,0.00030135,2]
[336812007,1725186432346,-500.0,0.00030135,2]
[336812008,1725186432372,-500.0,0.00030135,2]
[336812009,1725186432397,-3037.56271055,0.00030136,11]
[336812010,1725186432417,-438.12471712,0.00030136,31]
[336812011,1725186432437,-500.0,0.00030136,31]
[336812012,1725186432457,-500.0,0.00030136,31]
[336812013,1725186432480,-500.0,0.00030136,31]
[336812014,1725186432500,-500.0,0.00030136,31]
[336812015,1725186432521,-500.0,0.00030136,31]
[336812016,1725186432542,-500.0,0.00030136,31]
[336812017,1725186432563,-500.0,0.00030136,31]
[336812018,1725186432584,-500.0,0.00030136,31]
[336812019,1725186432605,-500.0,0.00030136,31]
[336812020,1725186432624,-222.31699498,0.00030136,31]
[336812021,1725186432644,-519.70414707,0.00030136,31]
[336812022,1725186432666,-304.74475444,0.00030136,31]
[336812023,1725186432687,-500.0,0.00030136,31]
[336812024,1725186432707,-500.0,0.00030136,31]
[336812025,1725186432727,-500.0,0.00030136,31]
[336812026,1725186432747,-500.0,0.00030136,31]
[336812027,1725186432768,-500.0,0.00030136,31]
[336812028,1725186432788,-539.17,0.00030136,31]
[336812029,1725186432810,-500.0,0.00030136,31]
[336812030,1725186432830,-500.0,0.00030136,31]
[336812031,1725186432861,-500.0,0.00030136,31]
[336812032,1725186432880,-500.0,0.00030136,31]
[336812033,1725186432901,-500.0,0.00030136,31]
[336812034,1725186432921,-500.0,0.00030136,31]
[336812035,1725186432941,-500.0,0.00030136,31]
[336812036,1725186432961,-500.0,0.00030136,31]
[336812037,1725186432982,-500.0,0.00030136,31]
[336812038,1725186433004,-500.0,0.00030136,31]
[336812039,1725186433025,-546.9798973,0.00030136,31]
[336812040,1725186433046,-500.0,0.00030136,31]
[336812041,1725186433070,-502.67013471,0.00030136,31]
[336812042,1725186433099,-500.0,0.00030136,31]
[336812043,1725186433127,-500.0,0.00030136,31]
[336812044,1725186433152,-549.21595315,0.00030136,31]
[336812045,1725186433172,-500.0,0.00030136,31]
[336812046,1725186433193,-500.0,0.00030136,31]
[336812047,1725186433214,-500.0,0.00030136,31]
[336812048,1725186433239,-500.0,0.00030136,31]
[336812049,1725186433265,-502.00548169,0.00030136,31]
[336812050,1725186433288,-500.0,0.00030136,31]
[336812051,1725186433312,-500.0,0.00030136,31]
[336812052,1725186433337,-500.0,0.00030136,31]
[336812053,1725186433362,-500.0,0.00030136,31]
[336812054,1725186433383,-637.92,0.00030136,31]
[336812055,1725186433403,-500.0,0.00030136,31]
[336812056,1725186433422,-603.8133327,0.00030136,31]
[336812057,1725186433442,-507.52296583,0.00030136,31]
[336812058,1725186433468,-500.0,0.00030136,31]
[336812059,1725186433662,-536.3871627,0.00030136,31]
[336812060,1725186433683,-500.0,0.00030136,31]
[336812061,1725186433705,-500.0,0.00030136,31]
[336812062,1725186433729,-503.59389083,0.00030136,31]
[336812063,1725186433751,-500.0,0.00030136,31]
[336812064,1725186433774,-500.0,0.00030136,31]
[336812065,1725186433795,-500.0,0.00030136,31]
[336812066,1725186433816,-500.0,0.00030136,31]
[336812067,1725186433837,-500.0,0.00030136,31]
[336812068,1725186433859,-581.05,0.00030136,31]
[336812069,1725186433880,-506.58361876,0.00030136,31]
[336812070,1725186433902,-500.0,0.00030136,31]
[336812071,1725186433923,-500.0,0.00030136,31]
[336812072,1725186433945,-500.0,0.00030136,31]
[336812073,1725186433966,-500.0,0.00030136,31]
[336812074,1725186433987,-837.63,0.00030136,31]
[336812075,1725186434008,-500.0,0.00030136,31]
[336812076,1725186434029,-500.0,0.00030136,31]
[336812077,1725186434050,-500.0,0.00030136,31]
[336812078,1725186434075,-500.0,0.00030136,31]
[336812079,1725186434095,-500.0,0.00030136,31]
[336812080,1725186434116,-500.0,0.00030136,31]
[336812081,1725186434137,-504.63088037,0.00030136,31]
[336812082,1725186434158,-425.29799994,0.00030136,31]
[336812083,1725186434180,-793.15,0.00030136,31]